[Event "Late-Titled-Tuesday-Blitz-September-05-2023"]
[Site "Chess.com"]
[Date "2023.09.05"]
[Round "3"]
[White "Semetey"]
[Black "alturas_pacificas"]
[Result "1/2-1/2"]
[WhiteElo "2562"]
[BlackElo "2405"]
[TimeControl "180+1"]
[EndTime "14:32:20 PDT"]
[Termination "Game drawn by repetition"]

1. d4 {[%clk 0:02:43.7]} 1... d5 {[%clk 0:02:59.5]} 2. Bf4 {[%clk 0:02:43.3]}
2... Nf6 {[%clk 0:02:59.3]} 3. e3 {[%clk 0:02:42.9]} 3... c5 {[%clk 0:02:59.9]}
4. c3 {[%clk 0:02:41.8]} 4... Nc6 {[%clk 0:03:00.5]} 5. Nd2 {[%clk 0:02:41.5]}
5... e6 {[%clk 0:02:59.7]} 6. Ngf3 {[%clk 0:02:40.8]} 6... Bd6 {[%clk
0:03:00.4]} 7. Bg3 {[%clk 0:02:40.8]} 7... Qc7 {[%clk 0:03:00.4]} 8. Bd3 {[%clk
0:02:39.7]} 8... cxd4 {[%clk 0:02:58.5]} 9. exd4 {[%clk 0:02:39.3]} 9... Bxg3
{[%clk 0:02:56]} 10. hxg3 {[%clk 0:02:38]} 10... Bd7 {[%clk 0:02:56.6]} 11. Qe2
{[%clk 0:02:36.3]} 11... Ne7 {[%clk 0:02:56.2]} 12. Ne5 {[%clk 0:02:35]} 12...
h6 {[%clk 0:02:54.9]} 13. g4 {[%clk 0:02:33.9]} 13... Rf8 {[%clk 0:02:42.4]} 14.
Nb3 {[%clk 0:01:49]} 14... O-O-O {[%clk 0:02:34.8]} 15. Nc5 {[%clk 0:01:48.9]}
15... Nc6 {[%clk 0:02:25.7]} 16. f4 {[%clk 0:01:43.8]} 16... Kb8 {[%clk
0:02:16.7]} 17. O-O-O {[%clk 0:00:54.5]} 17... Bc8 {[%clk 0:02:15.1]} 18. Kb1
{[%clk 0:00:47.9]} 18... Nd7 {[%clk 0:02:10.7]} 19. Ncxd7+ {[%clk 0:00:40]}
19... Bxd7 {[%clk 0:02:11.6]} 20. g3 {[%clk 0:00:36.9]} 20... Bc8 {[%clk
0:02:11.6]} 21. Rc1 {[%clk 0:00:30.8]} 21... Ka8 {[%clk 0:02:08.5]} 22. Bb5
{[%clk 0:00:28.9]} 22... Qb6 {[%clk 0:02:06.6]} 23. Nxc6 {[%clk 0:00:20.3]}
23... bxc6 {[%clk 0:02:05.4]} 24. Bd3 {[%clk 0:00:20.7]} 24... Bb7 {[%clk
0:01:57.2]} 25. Ka1 {[%clk 0:00:20.2]} 25... c5 {[%clk 0:01:57]} 26. Qe5 {[%clk
0:00:16.6]} 26... f6 {[%clk 0:01:54]} 27. Qe3 {[%clk 0:00:15.3]} 27... Rfe8
{[%clk 0:01:51.9]} 28. Bg6 {[%clk 0:00:14.8]} 28... Re7 {[%clk 0:01:52.3]} 29.
dxc5 {[%clk 0:00:14.9]} 29... Qc7 {[%clk 0:01:46.2]} 30. Rhe1 {[%clk 0:00:13.5]}
30... a5 {[%clk 0:01:40.7]} 31. b4 {[%clk 0:00:12.7]} 31... d4 {[%clk
0:01:31.1]} 32. Qf2 {[%clk 0:00:08.2]} 32... dxc3 {[%clk 0:01:25.2]} 33. b5
{[%clk 0:00:08.1]} 33... Rd2 {[%clk 0:01:21.7]} 34. Qe3 {[%clk 0:00:08.2]} 34...
Bd5 {[%clk 0:01:22.1]} 35. Qxc3 {[%clk 0:00:06.7]} 35... Rxa2+ {[%clk
0:01:21.8]} 36. Kb1 {[%clk 0:00:07]} 36... a4 {[%clk 0:01:10.6]} 37. Be4 {[%clk
0:00:06.3]} 37... Qd8 {[%clk 0:01:03.7]} 38. Bxd5+ {[%clk 0:00:05.5]} 38... Qxd5
{[%clk 0:01:04.4]} 39. Red1 {[%clk 0:00:05.4]} 39... Qb3+ {[%clk 0:00:57.5]} 40.
Qxb3 {[%clk 0:00:05.6]} 40... axb3 {[%clk 0:00:58.4]} 41. b6 {[%clk 0:00:05.7]}
41... Kb7 {[%clk 0:00:54.3]} 42. Rd3 {[%clk 0:00:06.2]} 42... Rc2 {[%clk
0:00:36.2]} 43. Rxb3 {[%clk 0:00:04.5]} 43... Rxc1+ {[%clk 0:00:34.5]} 44. Kxc1
{[%clk 0:00:05.4]} 44... Kc6 {[%clk 0:00:35.1]} 45. Kc2 {[%clk 0:00:05.6]} 45...
e5 {[%clk 0:00:34.5]} 46. fxe5 {[%clk 0:00:04.8]} 46... fxe5 {[%clk 0:00:35.4]}
47. Kd3 {[%clk 0:00:04.1]} 47... Re8 {[%clk 0:00:30.3]} 48. Kc4 {[%clk 0:00:04]}
48... e4 {[%clk 0:00:29.9]} 49. Re3 {[%clk 0:00:02.9]} 49... Re5 {[%clk
0:00:29.9]} 50. Kd4 {[%clk 0:00:02]} 50... Rxc5 {[%clk 0:00:28.9]} 51. b7 {[%clk
0:00:02.5]} 51... Rb5 {[%clk 0:00:26.3]} 52. Rxe4 {[%clk 0:00:03.1]} 52... Rxb7
{[%clk 0:00:24.7]} 53. Re6+ {[%clk 0:00:03.3]} 53... Kd7 {[%clk 0:00:24.6]} 54.
Rg6 {[%clk 0:00:04.2]} 54... Ke8 {[%clk 0:00:24.7]} 55. Ke5 {[%clk 0:00:04.7]}
55... Kf7 {[%clk 0:00:25.1]} 56. Rc6 {[%clk 0:00:04.1]} 56... Rb5+ {[%clk
0:00:24.3]} 57. Kf4 {[%clk 0:00:04.3]} 57... Rb4+ {[%clk 0:00:24.8]} 58. Kf3
{[%clk 0:00:04.7]} 58... Rd4 {[%clk 0:00:24.4]} 59. Rb6 {[%clk 0:00:03.6]} 59...
Rc4 {[%clk 0:00:24.5]} 60. Ra6 {[%clk 0:00:04.2]} 60... Rb4 {[%clk 0:00:24.6]}
61. Rd6 {[%clk 0:00:04.7]} 61... Rc4 {[%clk 0:00:24.7]} 62. Rb6 {[%clk 0:00:05]}
62... g6 {[%clk 0:00:24.9]} 63. Ra6 {[%clk 0:00:05.4]} 63... Rc7 {[%clk
0:00:25]} 64. Rb6 {[%clk 0:00:05.5]} 64... Ra7 {[%clk 0:00:25.2]} 65. Rc6 {[%clk
0:00:05.8]} 65... Re7 {[%clk 0:00:25.8]} 66. Rb6 {[%clk 0:00:05.7]} 66... Rd7
{[%clk 0:00:26.4]} 67. Ra6 {[%clk 0:00:06]} 67... Rb7 {[%clk 0:00:26.9]} 68. Rc6
{[%clk 0:00:05.9]} 68... g5 {[%clk 0:00:27.2]} 69. Rxh6 {[%clk 0:00:05.1]} 69...
Rb4 {[%clk 0:00:26.1]} 70. Rc6 {[%clk 0:00:03.9]} 70... Kg7 {[%clk 0:00:26.1]}
71. Rc5 {[%clk 0:00:04.1]} 71... Kf6 {[%clk 0:00:25.9]} 72. Rc6+ {[%clk
0:00:04.6]} 72... Kf7 {[%clk 0:00:26.5]} 73. Rc5 {[%clk 0:00:04.7]} 73... Kf6
{[%clk 0:00:26.5]} 74. Rc7 {[%clk 0:00:05.3]} 74... Rb3+ {[%clk 0:00:26.1]} 75.
Kg2 {[%clk 0:00:04.8]} 75... Rb2+ {[%clk 0:00:24.6]} 76. Kh3 {[%clk 0:00:05.4]}
76... Rb1 {[%clk 0:00:25.4]} 77. Rc6+ {[%clk 0:00:05.9]} 77... Kf7 {[%clk
0:00:25.6]} 78. Rc5 {[%clk 0:00:06.2]} 78... Kg6 {[%clk 0:00:25.5]} 79. Rf5
{[%clk 0:00:06.6]} 79... Rg1 {[%clk 0:00:24.2]} 80. Kh2 {[%clk 0:00:06.6]} 80...
Re1 {[%clk 0:00:24]} 81. Ra5 {[%clk 0:00:07.1]} 81... Re2+ {[%clk 0:00:24.3]}
82. Kh3 {[%clk 0:00:07.1]} 82... Rb2 {[%clk 0:00:24.6]} 83. Ra6+ {[%clk
0:00:06.6]} 83... Kg7 {[%clk 0:00:25]} 84. Ra7+ {[%clk 0:00:07.3]} 84... Kf6
{[%clk 0:00:25.5]} 85. Ra8 {[%clk 0:00:07.8]} 85... Kg6 {[%clk 0:00:23.4]} 86.
Rg8+ {[%clk 0:00:08]} 86... Kh6 {[%clk 0:00:23.3]} 87. Rh8+ {[%clk 0:00:08.2]}
87... Kg6 {[%clk 0:00:23.8]} 88. Rc8 {[%clk 0:00:09]} 88... Rb6 {[%clk
0:00:23.1]} 89. Rc7 {[%clk 0:00:09.1]} 89... Ra6 {[%clk 0:00:23.3]} 90. Rc2
{[%clk 0:00:09]} 90... Ra3 {[%clk 0:00:23.4]} 91. Rf2 {[%clk 0:00:09.4]} 91...
Rb3 {[%clk 0:00:23.6]} 92. Kg2 {[%clk 0:00:09.9]} 92... Rc3 {[%clk 0:00:23.8]}
93. Re2 {[%clk 0:00:09.9]} 93... Rd3 {[%clk 0:00:24.1]} 94. Kf2 {[%clk
0:00:10.5]} 94... Ra3 {[%clk 0:00:24.3]} 95. Re6+ {[%clk 0:00:10.6]} 95... Kg7
{[%clk 0:00:23.5]} 96. Re5 {[%clk 0:00:11.2]} 96... Kf6 {[%clk 0:00:23.4]} 97.
Rb5 {[%clk 0:00:11.3]} 97... Ra2+ {[%clk 0:00:23.1]} 98. Kf3 {[%clk 0:00:11.8]}
98... Ra3+ {[%clk 0:00:23.5]} 99. Ke4 {[%clk 0:00:11.6]} 99... Rxg3 {[%clk
0:00:21.9]} 100. Rb6+ {[%clk 0:00:11.2]} 100... Kg7 {[%clk 0:00:21.5]} 101. Kf5
{[%clk 0:00:11.4]} 101... Rf3+ {[%clk 0:00:19.4]} 102. Kxg5 {[%clk 0:00:11]}
102... Rf7 {[%clk 0:00:20.1]} 103. Rg6+ {[%clk 0:00:11]} 103... Kh8 {[%clk
0:00:20.1]} 104. Kh6 {[%clk 0:00:10.9]} 104... Rf8 {[%clk 0:00:19.9]} 105. Re6
{[%clk 0:00:10.6]} 105... Ra8 {[%clk 0:00:20.1]} 106. g5 {[%clk 0:00:10.8]}
106... Kg8 {[%clk 0:00:19]} 107. g6 {[%clk 0:00:10.8]} 107... Rb8 {[%clk
0:00:19]} 108. Rd6 {[%clk 0:00:11]} 108... Ra8 {[%clk 0:00:19.2]} 109. Rc6
{[%clk 0:00:11.6]} 109... Rb8 {[%clk 0:00:19.5]} 110. Ra6 {[%clk 0:00:11.6]}
110... Rc8 {[%clk 0:00:19.5]} 111. Ra7 {[%clk 0:00:11.9]} 111... Rd8 {[%clk
0:00:19.5]} 112. Rb7 {[%clk 0:00:12.1]} 112... Rc8 {[%clk 0:00:19.8]} 113. Rd7
{[%clk 0:00:12.2]} 113... Ra8 {[%clk 0:00:19.8]} 114. Rc7 {[%clk 0:00:12.5]}
114... Rb8 {[%clk 0:00:20]} 115. Ra7 {[%clk 0:00:12.5]} 115... Rc8 {[%clk
0:00:20]} 116. Rg7+ {[%clk 0:00:13.2]} 116... Kh8 {[%clk 0:00:20]} 117. Rh7+
{[%clk 0:00:13.6]} 117... Kg8 {[%clk 0:00:20.6]} 118. Rf7 {[%clk 0:00:13.9]}
118... Rc1 {[%clk 0:00:18.8]} 119. Rf5 {[%clk 0:00:13.7]} 119... Rh1+ {[%clk
0:00:18.7]} 120. Rh5 {[%clk 0:00:14.3]} 120... Rxh5+ {[%clk 0:00:18.4]} 121.
Kxh5 {[%clk 0:00:15.2]} 121... Kg7 {[%clk 0:00:19]} 122. Kg5 {[%clk 0:00:16.1]}
122... Kg8 {[%clk 0:00:19.4]} 123. Kf6 {[%clk 0:00:17]} 123... Kf8 {[%clk
0:00:20]} 124. Kf5 {[%clk 0:00:17.7]} 124... Kg7 {[%clk 0:00:20.1]} 125. Kg5
{[%clk 0:00:18.3]} 125... Kg8 {[%clk 0:00:20.8]} 126. Kg4 {[%clk 0:00:19]}
126... Kg7 {[%clk 0:00:20.8]} 127. Kh5 {[%clk 0:00:19.7]} 127... Kg8 {[%clk
0:00:19.7]} 128. Kh6 {[%clk 0:00:20.4]} 128... Kh8 {[%clk 0:00:20]} 129. Kg5
{[%clk 0:00:20.7]} 129... Kg7 {[%clk 0:00:20.6]} 130. Kf5 {[%clk 0:00:21]}
130... Kg8 {[%clk 0:00:20.5]} 131. Kf6 {[%clk 0:00:21.4]} 131... Kf8 {[%clk
0:00:21]} 132. Ke6 {[%clk 0:00:21.6]} 132... Kg7 {[%clk 0:00:21.1]} 133. Kf5
{[%clk 0:00:22.3]} 133... Kg8 {[%clk 0:00:21.6]} 134. Kf6 {[%clk 0:00:22.5]}
1/2-1/2

[Event "Late-Titled-Tuesday-Blitz-September-05-2023"]
[Site "Chess.com"]
[Date "2023.09.05"]
[Round "4"]
[White "KVAIDAN"]
[Black "leschebaza"]
[Result "0-1"]
[WhiteElo "2227"]
[BlackElo "2393"]
[TimeControl "180+1"]
[EndTime "14:33:45 PDT"]
[Termination "leschebaza won by resignation"]

1. f4 {[%clk 0:03:00]} 1... Nf6 {[%clk 0:02:59.2]} 2. Nf3 {[%clk 0:02:58.9]}
2... g6 {[%clk 0:02:59.5]} 3. d3 {[%clk 0:02:58.4]} 3... Bg7 {[%clk 0:02:59.9]}
4. e4 {[%clk 0:02:58.2]} 4... d6 {[%clk 0:03:00.4]} 5. Be2 {[%clk 0:02:57.3]}
5... O-O {[%clk 0:03:00.8]} 6. O-O {[%clk 0:02:57.2]} 6... e5 {[%clk 0:03:00]}
7. Nc3 {[%clk 0:02:58.1]} 7... Nc6 {[%clk 0:02:58.7]} 8. Qe1 {[%clk 0:02:58.4]}
8... Nd4 {[%clk 0:02:52.5]} 9. Bd1 {[%clk 0:02:57.5]} 9... Bg4 {[%clk
0:02:44.1]} 10. Qh4 {[%clk 0:02:56]} 10... Bxf3 {[%clk 0:02:42.4]} 11. gxf3
{[%clk 0:02:55.9]} 11... Nh5 {[%clk 0:02:35]} 12. f5 {[%clk 0:02:54.2]} 12...
Qxh4 {[%clk 0:02:34.8]} 0-1

[Event "Late-Titled-Tuesday-Blitz-September-05-2023"]
[Site "Chess.com"]
[Date "2023.09.05"]
[Round "4"]
[White "IM_Tissir"]
[Black "acertijo08"]
[Result "1-0"]
[WhiteElo "2473"]
[BlackElo "2294"]
[TimeControl "180+1"]
[EndTime "14:34:41 PDT"]
[Termination "IM_Tissir won by resignation"]

1. e4 {[%clk 0:02:54]} 1... e5 {[%clk 0:02:59.8]} 2. Nf3 {[%clk 0:02:53.1]} 2...
Nc6 {[%clk 0:03:00.1]} 3. Bc4 {[%clk 0:02:52.9]} 3... Bc5 {[%clk 0:03:00.2]} 4.
c3 {[%clk 0:02:53.1]} 4... Nf6 {[%clk 0:03:00.2]} 5. d3 {[%clk 0:02:53.7]} 5...
O-O {[%clk 0:02:57.1]} 6. Bb3 {[%clk 0:02:53]} 6... d6 {[%clk 0:02:56.6]} 7.
Nbd2 {[%clk 0:02:52.8]} 7... a6 {[%clk 0:02:56.1]} 8. Nf1 {[%clk 0:02:53.1]}
8... Ba7 {[%clk 0:02:53.5]} 9. Ng3 {[%clk 0:02:53.3]} 9... Ne7 {[%clk
0:02:46.3]} 10. Bg5 {[%clk 0:02:52.8]} 10... Ng6 {[%clk 0:02:46.1]} 11. Nh5
{[%clk 0:02:53.3]} 11... Nxh5 {[%clk 0:02:38]} 12. Bxd8 {[%clk 0:02:52.6]} 12...
Rxd8 {[%clk 0:02:38.9]} 13. Bxf7+ {[%clk 0:02:47.9]} 13... Kxf7 {[%clk
0:02:36.1]} 14. Ng5+ {[%clk 0:02:47.7]} 14... Kg8 {[%clk 0:02:36.6]} 15. Qxh5
{[%clk 0:02:47.9]} 15... Nf8 {[%clk 0:02:27.7]} 16. Qf7+ {[%clk 0:02:34.9]}
16... Kh8 {[%clk 0:02:27.6]} 17. Qb3 {[%clk 0:02:29.1]} 1-0

[Event "Late-Titled-Tuesday-Blitz-September-05-2023"]
[Site "Chess.com"]
[Date "2023.09.05"]
[Round "4"]
[White "picturesquecheck"]
[Black "dretch"]
[Result "0-1"]
[WhiteElo "2311"]
[BlackElo "2866"]
[TimeControl "180+1"]
[EndTime "14:34:48 PDT"]
[Termination "dretch won by resignation"]

1. e4 {[%clk 0:03:00.9]} 1... e6 {[%clk 0:03:00.1]} 2. d4 {[%clk 0:03:00.8]}
2... d5 {[%clk 0:03:00.7]} 3. Nd2 {[%clk 0:03:01.4]} 3... c5 {[%clk 0:02:59.6]}
4. exd5 {[%clk 0:02:58.9]} 4... Qxd5 {[%clk 0:02:58.8]} 5. Ngf3 {[%clk
0:02:59.8]} 5... cxd4 {[%clk 0:02:59.4]} 6. Bc4 {[%clk 0:02:54.1]} 6... Qd6
{[%clk 0:02:59.6]} 7. O-O {[%clk 0:02:52.9]} 7... Nf6 {[%clk 0:03:00.1]} 8. Nb3
{[%clk 0:02:51.8]} 8... Nc6 {[%clk 0:03:00.6]} 9. Nbxd4 {[%clk 0:02:44.7]} 9...
Nxd4 {[%clk 0:02:57]} 10. Nxd4 {[%clk 0:02:45.6]} 10... Be7 {[%clk 0:02:57.5]}
11. Re1 {[%clk 0:02:42.8]} 11... O-O {[%clk 0:02:57]} 12. Bg5 {[%clk 0:02:40.8]}
12... Qc5 {[%clk 0:02:56.8]} 0-1

[Event "Late-Titled-Tuesday-Blitz-September-05-2023"]
[Site "Chess.com"]
[Date "2023.09.05"]
[Round "4"]
[White "Sajkochess"]
[Black "karinachess1"]
[Result "0-1"]
[WhiteElo "2385"]
[BlackElo "2558"]
[TimeControl "180+1"]
[EndTime "14:34:51 PDT"]
[Termination "karinachess1 won by resignation"]

1. e4 {[%clk 0:03:00.9]} 1... c5 {[%clk 0:02:59.8]} 2. Nf3 {[%clk 0:03:01.1]}
2... e6 {[%clk 0:03:00.2]} 3. d4 {[%clk 0:03:01.6]} 3... cxd4 {[%clk 0:03:01.1]}
4. Nxd4 {[%clk 0:03:02.4]} 4... a6 {[%clk 0:03:02]} 5. Nc3 {[%clk 0:03:02.7]}
5... Qc7 {[%clk 0:03:02.3]} 6. g3 {[%clk 0:03:03]} 6... Nf6 {[%clk 0:03:02.8]}
7. Bg2 {[%clk 0:03:03.4]} 7... Nc6 {[%clk 0:03:03.4]} 8. O-O {[%clk 0:03:03.4]}
8... h5 {[%clk 0:03:04]} 9. h3 {[%clk 0:03:02.9]} 9... Nxd4 {[%clk 0:03:02.1]}
10. Qxd4 {[%clk 0:03:02.4]} 10... Bc5 {[%clk 0:03:02.7]} 11. Bf4 {[%clk
0:03:01.2]} 11... d6 {[%clk 0:03:02.1]} 12. Qd2 {[%clk 0:02:42]} 12... e5 {[%clk
0:03:01.2]} 13. Bg5 {[%clk 0:02:41.7]} 13... Be6 {[%clk 0:03:01.8]} 14. Bxf6
{[%clk 0:02:29.9]} 14... gxf6 {[%clk 0:03:02.7]} 15. Nd5 {[%clk 0:02:29.7]}
15... Bxd5 {[%clk 0:02:52.1]} 16. Qxd5 {[%clk 0:02:29.3]} 16... O-O-O {[%clk
0:02:52.5]} 17. h4 {[%clk 0:02:22.3]} 17... Rhg8 {[%clk 0:02:44.5]} 18. c3
{[%clk 0:02:12.2]} 18... Rxg3 {[%clk 0:02:39.6]} 19. b4 {[%clk 0:02:12]} 19...
Rdg8 {[%clk 0:02:38.3]} 20. bxc5 {[%clk 0:02:09.5]} 20... Rxg2+ {[%clk
0:02:38.4]} 21. Kh1 {[%clk 0:02:10]} 21... R2g4 {[%clk 0:02:35.2]} 0-1

[Event "Late-Titled-Tuesday-Blitz-September-05-2023"]
[Site "Chess.com"]
[Date "2023.09.05"]
[Round "4"]
[White "ybothg"]
[Black "Witik"]
[Result "0-1"]
[WhiteElo "2503"]
[BlackElo "2682"]
[TimeControl "180+1"]
[EndTime "14:34:55 PDT"]
[Termination "Witik won by checkmate"]

1. d4 {[%clk 0:03:00.9]} 1... Nf6 {[%clk 0:02:59.1]} 2. Bg5 {[%clk 0:03:00.8]}
2... d5 {[%clk 0:02:58.5]} 3. Bxf6 {[%clk 0:03:00.9]} 3... gxf6 {[%clk
0:02:58.7]} 4. e3 {[%clk 0:03:01.6]} 4... c5 {[%clk 0:02:57.9]} 5. c4 {[%clk
0:03:00.7]} 5... e5 {[%clk 0:02:53.6]} 6. dxe5 {[%clk 0:02:59.7]} 6... d4 {[%clk
0:02:49.1]} 7. exd4 {[%clk 0:02:55.7]} 7... cxd4 {[%clk 0:02:48.2]} 8. exf6
{[%clk 0:02:53.4]} 8... Qxf6 {[%clk 0:02:41.6]} 9. Nf3 {[%clk 0:02:50.4]} 9...
Nc6 {[%clk 0:02:35.1]} 10. Nbd2 {[%clk 0:02:50.3]} 10... Bf5 {[%clk 0:02:30.8]}
11. Be2 {[%clk 0:02:48.9]} 11... d3 {[%clk 0:02:29.7]} 12. Bf1 {[%clk
0:02:41.4]} 12... O-O-O {[%clk 0:02:29.5]} 13. Qa4 {[%clk 0:02:28.9]} 13... Qxb2
{[%clk 0:02:22.3]} 14. Nb3 {[%clk 0:02:07.6]} 14... Bb4+ {[%clk 0:02:15.8]} 15.
Nfd2 {[%clk 0:02:07.7]} 15... Rhe8+ {[%clk 0:02:14.8]} 16. Kd1 {[%clk 0:02:08]}
16... Qc2# {[%clk 0:02:14.4]} 0-1

[Event "Late-Titled-Tuesday-Blitz-September-05-2023"]
[Site "Chess.com"]
[Date "2023.09.05"]
[Round "4"]
[White "morozcoma"]
[Black "stregachess"]
[Result "1-0"]
[WhiteElo "2309"]
[BlackElo "2081"]
[TimeControl "180+1"]
[EndTime "14:35:19 PDT"]
[Termination "morozcoma won by resignation"]

1. e4 {[%clk 0:03:00.9]} 1... c5 {[%clk 0:02:59.5]} 2. Nc3 {[%clk 0:03:01]} 2...
Nc6 {[%clk 0:02:57.1]} 3. Nf3 {[%clk 0:03:01.4]} 3... g6 {[%clk 0:02:57.1]} 4.
Bc4 {[%clk 0:03:01.7]} 4... Rb8 {[%clk 0:02:56.2]} 5. O-O {[%clk 0:03:01.6]}
5... Bg7 {[%clk 0:02:54.7]} 6. a4 {[%clk 0:02:59.6]} 6... e6 {[%clk 0:02:54.2]}
7. d4 {[%clk 0:02:59.1]} 7... cxd4 {[%clk 0:02:50.7]} 8. Nb5 {[%clk 0:02:59]}
8... d6 {[%clk 0:02:47]} 9. Nbxd4 {[%clk 0:02:58.7]} 9... Nge7 {[%clk
0:02:47.1]} 10. Nb5 {[%clk 0:02:58.8]} 10... d5 {[%clk 0:02:44.7]} 11. exd5
{[%clk 0:02:58.3]} 11... exd5 {[%clk 0:02:44.5]} 12. Bxd5 {[%clk 0:02:51.2]}
12... O-O {[%clk 0:02:38.1]} 13. Bb3 {[%clk 0:02:46]} 13... a6 {[%clk
0:02:32.8]} 14. Nc3 {[%clk 0:02:42.5]} 14... Qc7 {[%clk 0:02:29.4]} 15. Nd5
{[%clk 0:02:39]} 15... Nxd5 {[%clk 0:02:28.3]} 16. Qxd5 {[%clk 0:02:39.9]} 16...
Be6 {[%clk 0:02:14.6]} 17. Qg5 {[%clk 0:02:38.9]} 17... Bxb3 {[%clk 0:01:57.2]}
18. Bf4 {[%clk 0:02:36.5]} 18... Ne5 {[%clk 0:01:53.7]} 19. Nxe5 {[%clk
0:02:30.2]} 19... Bxe5 {[%clk 0:01:48]} 20. Bxe5 {[%clk 0:02:28.2]} 20... Qxc2
{[%clk 0:01:43.5]} 21. Qf6 {[%clk 0:02:26.4]} 1-0

[Event "Late-Titled-Tuesday-Blitz-September-05-2023"]
[Site "Chess.com"]
[Date "2023.09.05"]
[Round "4"]
[White "maurovargas01"]
[Black "NovikovaGalina"]
[Result "0-1"]
[WhiteElo "1864"]
[BlackElo "2413"]
[TimeControl "180+1"]
[EndTime "14:36:17 PDT"]
[Termination "NovikovaGalina won by resignation"]

1. e4 {[%clk 0:03:00.5]} 1... e5 {[%clk 0:03:00.5]} 2. Nf3 {[%clk 0:02:59.1]}
2... Nc6 {[%clk 0:03:01]} 3. d4 {[%clk 0:02:55.8]} 3... exd4 {[%clk 0:03:00.5]}
4. Bc4 {[%clk 0:02:53.9]} 4... Bc5 {[%clk 0:02:56.4]} 5. c3 {[%clk 0:02:47.6]}
5... d3 {[%clk 0:02:56.1]} 6. Qxd3 {[%clk 0:02:46.7]} 6... Nf6 {[%clk
0:02:53.6]} 7. e5 {[%clk 0:02:44.1]} 7... d5 {[%clk 0:02:50.5]} 8. Bb3 {[%clk
0:02:25.1]} 8... Ng4 {[%clk 0:02:36.5]} 9. Bf4 {[%clk 0:02:21.3]} 9... Nxf2
{[%clk 0:02:32.7]} 10. Qf1 {[%clk 0:02:11.9]} 10... Nxh1 {[%clk 0:02:29.3]} 11.
Qxh1 {[%clk 0:02:11.1]} 11... O-O {[%clk 0:02:25.7]} 12. Nbd2 {[%clk 0:02:05.3]}
12... Bf5 {[%clk 0:02:21.6]} 13. O-O-O {[%clk 0:02:04.6]} 13... Na5 {[%clk
0:02:13.6]} 14. Bc2 {[%clk 0:02:03.9]} 14... Qc8 {[%clk 0:02:05.9]} 15. h3
{[%clk 0:02:02.1]} 15... Bxc2 {[%clk 0:02:02.4]} 16. Kxc2 {[%clk 0:02:01.5]}
16... Nc4 {[%clk 0:02:03.3]} 17. Nxc4 {[%clk 0:01:56.8]} 17... dxc4 {[%clk
0:02:04]} 18. Kc1 {[%clk 0:01:54.5]} 18... Qf5 {[%clk 0:02:00.4]} 19. g3 {[%clk
0:01:49.9]} 19... Rad8 {[%clk 0:01:57.1]} 20. Rf1 {[%clk 0:01:44]} 20... Qe4
{[%clk 0:01:55]} 21. Qg1 {[%clk 0:01:37.7]} 21... Bxg1 {[%clk 0:01:53.6]} 22.
Nxg1 {[%clk 0:01:37]} 22... Qg2 {[%clk 0:01:47.1]} 0-1

[Event "Late-Titled-Tuesday-Blitz-September-05-2023"]
[Site "Chess.com"]
[Date "2023.09.05"]
[Round "4"]
[White "Casper"]
[Black "HeinichessPY"]
[Result "1-0"]
[WhiteElo "2454"]
[BlackElo "2227"]
[TimeControl "180+1"]
[EndTime "14:36:46 PDT"]
[Termination "Casper won by resignation"]

1. e4 {[%clk 0:03:00.9]} 1... c5 {[%clk 0:02:54.6]} 2. d4 {[%clk 0:03:01.1]}
2... cxd4 {[%clk 0:02:42.3]} 3. Qxd4 {[%clk 0:03:02]} 3... Nc6 {[%clk
0:02:41.9]} 4. Qe3 {[%clk 0:03:02.6]} 4... g6 {[%clk 0:02:41.5]} 5. Nc3 {[%clk
0:03:02.8]} 5... Bg7 {[%clk 0:02:42]} 6. Bd2 {[%clk 0:03:02.9]} 6... Nf6 {[%clk
0:02:41.1]} 7. O-O-O {[%clk 0:03:03.4]} 7... O-O {[%clk 0:02:41]} 8. h4 {[%clk
0:03:03.2]} 8... d6 {[%clk 0:02:36.4]} 9. h5 {[%clk 0:03:02.4]} 9... Qb6 {[%clk
0:02:28.8]} 10. Qxb6 {[%clk 0:02:59.9]} 10... axb6 {[%clk 0:02:28.4]} 11. hxg6
{[%clk 0:02:58.2]} 11... hxg6 {[%clk 0:02:26.1]} 12. f3 {[%clk 0:02:51.7]} 12...
Be6 {[%clk 0:02:24.7]} 13. a3 {[%clk 0:02:51.7]} 13... Ne5 {[%clk 0:02:22.2]}
14. Be3 {[%clk 0:02:49.1]} 14... Rfc8 {[%clk 0:02:19]} 15. Bxb6 {[%clk
0:02:46.6]} 15... Bc4 {[%clk 0:02:18.8]} 16. Nge2 {[%clk 0:02:40.3]} 16... Nfd7
{[%clk 0:02:12.8]} 17. Bd4 {[%clk 0:02:38.8]} 17... Nc5 {[%clk 0:02:06.8]} 18.
Nf4 {[%clk 0:02:36.3]} 18... Bxf1 {[%clk 0:02:05.1]} 19. Rhxf1 {[%clk
0:02:37.2]} 19... Bh6 {[%clk 0:02:01.5]} 20. g3 {[%clk 0:02:19.5]} 20... Ne6
{[%clk 0:02:01.2]} 21. Nd5 {[%clk 0:02:11.5]} 21... Nc6 {[%clk 0:01:39.4]} 22.
Be3 {[%clk 0:02:05.1]} 22... Ne5 {[%clk 0:01:19.4]} 23. Nxe7+ {[%clk 0:01:49.9]}
23... Kf8 {[%clk 0:01:19.6]} 24. Nxc8 {[%clk 0:01:50.1]} 24... Rxc8 {[%clk
0:01:20.1]} 25. Kb1 {[%clk 0:01:47.7]} 25... Nxf4 {[%clk 0:01:18.2]} 26. Bxf4
{[%clk 0:01:45.8]} 26... Nc4 {[%clk 0:01:14.7]} 27. Bxh6+ {[%clk 0:01:45.2]} 1-0